[Event "Late-Titled-Tuesday-Blitz-October-10-2023"]
[Site "Chess.com"]
[Date "2023.10.10"]
[Round "6"]
[White "hansen"]
[Black "KaydenTroffChess"]
[Result "0-1"]
[WhiteElo "2912"]
[BlackElo "2811"]
[TimeControl "180+1"]
[EndTime "15:03:39 PDT"]
[Termination "KaydenTroffChess won by resignation"]

1. e4 {[%clk 0:03:00.3]} 1... c5 {[%clk 0:02:59.6]} 2. Nf3 {[%clk 0:03:00]} 2...
g6 {[%clk 0:03:00.1]} 3. c4 {[%clk 0:02:58.7]} 3... Bg7 {[%clk 0:03:00]} 4. d4
{[%clk 0:02:59.4]} 4... cxd4 {[%clk 0:03:00.7]} 5. Nxd4 {[%clk 0:03:00.3]} 5...
Qb6 {[%clk 0:03:01.1]} 6. Nb3 {[%clk 0:02:56]} 6... a5 {[%clk 0:03:00.9]} 7. Be3
{[%clk 0:02:53.3]} 7... Qb4+ {[%clk 0:03:00.3]} 8. Bd2 {[%clk 0:02:52.4]} 8...
Qd6 {[%clk 0:03:00]} 9. Bc3 {[%clk 0:01:51.7]} 9... Qxd1+ {[%clk 0:02:58.6]} 10.
Kxd1 {[%clk 0:01:52.6]} 10... Nf6 {[%clk 0:02:59]} 11. f3 {[%clk 0:01:50.1]}
11... Nc6 {[%clk 0:02:57.3]} 12. Na3 {[%clk 0:01:48.5]} 12... d6 {[%clk
0:02:53]} 13. Be2 {[%clk 0:01:38.1]} 13... Kf8 {[%clk 0:02:53.4]} 14. Ke1 {[%clk
0:01:35.5]} 14... Be6 {[%clk 0:02:51]} 15. Kf2 {[%clk 0:01:35.6]} 15... Nd7
{[%clk 0:02:51.1]} 16. Rhc1 {[%clk 0:01:31.8]} 16... Bxc3 {[%clk 0:02:46.6]} 17.
Rxc3 {[%clk 0:01:31.7]} 17... Kg7 {[%clk 0:02:43]} 18. Nb5 {[%clk 0:01:18.4]}
18... Rhc8 {[%clk 0:02:35.7]} 19. N3d4 {[%clk 0:01:15.2]} 19... Nc5 {[%clk
0:02:23.7]} 20. Ke3 {[%clk 0:01:07.7]} 20... Bd7 {[%clk 0:02:20.7]} 21. Rd1
{[%clk 0:01:05]} 21... Na4 {[%clk 0:01:52.8]} 22. Rc2 {[%clk 0:01:03.8]} 22...
Nb4 {[%clk 0:01:33.8]} 23. Rcd2 {[%clk 0:01:03.5]} 23... Nc5 {[%clk 0:01:03]}
24. Nc3 {[%clk 0:01:00.4]} 24... Be6 {[%clk 0:00:57.5]} 25. f4 {[%clk
0:00:57.2]} 25... Nc6 {[%clk 0:00:49.7]} 26. Ndb5 {[%clk 0:00:53.5]} 26... a4
{[%clk 0:00:45.9]} 27. g4 {[%clk 0:00:36.7]} 27... Na5 {[%clk 0:00:41.7]} 28.
Na3 {[%clk 0:00:29.9]} 28... Nd7 {[%clk 0:00:36.7]} 29. Nd5 {[%clk 0:00:15.1]}
29... Bxd5 {[%clk 0:00:35.5]} 30. exd5 {[%clk 0:00:15.2]} 30... Nc5 {[%clk
0:00:24.3]} 31. Rc2 {[%clk 0:00:07.1]} 31... Na6 {[%clk 0:00:24]} 32. Rcd2
{[%clk 0:00:06.5]} 32... Nb4 {[%clk 0:00:23.9]} 33. Ra1 {[%clk 0:00:06.5]} 33...
Rc5 {[%clk 0:00:20.6]} 34. Kf2 {[%clk 0:00:06.4]} 34... Re8 {[%clk 0:00:20]} 35.
Bf1 {[%clk 0:00:05]} 35... e6 {[%clk 0:00:20.1]} 36. dxe6 {[%clk 0:00:05.4]}
36... Rxe6 {[%clk 0:00:21]} 37. h3 {[%clk 0:00:05.1]} 37... h5 {[%clk 0:00:21]}
38. Kf3 {[%clk 0:00:05]} 38... hxg4+ {[%clk 0:00:20.6]} 39. hxg4 {[%clk
0:00:05.9]} 39... Rf6 {[%clk 0:00:19.5]} 40. Kg3 {[%clk 0:00:05.1]} 40... d5
{[%clk 0:00:17.4]} 41. cxd5 {[%clk 0:00:04.9]} 41... Nxd5 {[%clk 0:00:18.3]} 42.
Rd4 {[%clk 0:00:05.1]} 42... Ne3 {[%clk 0:00:18.1]} 43. Be2 {[%clk 0:00:04.4]}
43... Nc2 {[%clk 0:00:17.6]} 44. Nxc2 {[%clk 0:00:04]} 44... Rxc2 {[%clk
0:00:18.5]} 45. Bf3 {[%clk 0:00:04.4]} 45... Rxb2 {[%clk 0:00:18.3]} 46. Rxa4
{[%clk 0:00:04.8]} 46... b6 {[%clk 0:00:16]} 47. Rd1 {[%clk 0:00:04.5]} 47...
Re6 {[%clk 0:00:16.3]} 48. Ra3 {[%clk 0:00:04.1]} 48... Nc4 {[%clk 0:00:15.5]}
49. Rb3 {[%clk 0:00:04.6]} 49... Rxa2 {[%clk 0:00:15]} 50. Bd5 {[%clk
0:00:05.2]} 50... Re3+ {[%clk 0:00:15]} 51. Rxe3 {[%clk 0:00:05]} 51... Nxe3
{[%clk 0:00:15.9]} 52. Rd3 {[%clk 0:00:05.5]} 52... Nxd5 {[%clk 0:00:11.7]} 53.
Rxd5 {[%clk 0:00:06.4]} 53... Ra8 {[%clk 0:00:10.4]} 54. Rb5 {[%clk 0:00:05.2]}
54... Rb8 {[%clk 0:00:10.8]} 55. g5 {[%clk 0:00:05]} 55... Kf8 {[%clk
0:00:10.3]} 56. f5 {[%clk 0:00:05.5]} 56... gxf5 {[%clk 0:00:10]} 57. Kf4 {[%clk
0:00:05.6]} 57... Ke7 {[%clk 0:00:10.7]} 58. Kxf5 {[%clk 0:00:06.2]} 58... Kd6
{[%clk 0:00:11.4]} 59. Kf6 {[%clk 0:00:06.9]} 59... Rb7 {[%clk 0:00:11.8]} 60.
Rb1 {[%clk 0:00:02.8]} 60... b5 {[%clk 0:00:12.3]} 61. Rd1+ {[%clk 0:00:03.1]}
61... Kc5 {[%clk 0:00:12.6]} 62. Rc1+ {[%clk 0:00:03.6]} 62... Kd4 {[%clk
0:00:13]} 63. Rd1+ {[%clk 0:00:04.1]} 63... Kc3 {[%clk 0:00:13.3]} 64. Rc1+
{[%clk 0:00:04.5]} 64... Kd2 {[%clk 0:00:13.7]} 65. Rc8 {[%clk 0:00:03.2]} 65...
b4 {[%clk 0:00:13.4]} 66. Rd8+ {[%clk 0:00:03.8]} 66... Kc3 {[%clk 0:00:13.2]}
67. Rf8 {[%clk 0:00:04.6]} 67... b3 {[%clk 0:00:13.5]} 68. Rxf7 {[%clk
0:00:05.5]} 68... Rxf7+ {[%clk 0:00:12.8]} 69. Kxf7 {[%clk 0:00:06.4]} 69... b2
{[%clk 0:00:13.3]} 70. g6 {[%clk 0:00:07.2]} 70... b1=Q {[%clk 0:00:13.9]} 71.
g7 {[%clk 0:00:08.1]} 71... Qf5+ {[%clk 0:00:14.2]} 72. Ke7 {[%clk 0:00:08]}
72... Qg6 {[%clk 0:00:13.5]} 73. Kf8 {[%clk 0:00:08.5]} 73... Qf6+ {[%clk
0:00:14.2]} 74. Kg8 {[%clk 0:00:08.2]} 74... Kd4 {[%clk 0:00:14.9]} 0-1

[Event "Late-Titled-Tuesday-Blitz-October-10-2023"]
[Site "Chess.com"]
[Date "2023.10.10"]
[Round "6"]
[White "ThaBarWa"]
[Black "giomar27"]
[Result "1-0"]
[WhiteElo "2422"]
[BlackElo "2284"]
[TimeControl "180+1"]
[EndTime "15:03:44 PDT"]
[Termination "ThaBarWa won by resignation"]

1. d4 {[%clk 0:03:00.7]} 1... Nf6 {[%clk 0:02:58.8]} 2. c4 {[%clk 0:03:01]} 2...
c5 {[%clk 0:02:59.4]} 3. d5 {[%clk 0:03:01.1]} 3... b5 {[%clk 0:03:00.1]} 4. Nf3
{[%clk 0:02:59.5]} 4... g6 {[%clk 0:02:59.7]} 5. cxb5 {[%clk 0:02:57.6]} 5... a6
{[%clk 0:03:00.1]} 6. Nc3 {[%clk 0:02:53.7]} 6... axb5 {[%clk 0:02:58.8]} 7. d6
{[%clk 0:02:54.4]} 7... e6 {[%clk 0:02:53.6]} 8. e4 {[%clk 0:02:44.8]} 8... b4
{[%clk 0:02:45.1]} 9. Nb5 {[%clk 0:02:43.2]} 9... Na6 {[%clk 0:02:45.2]} 10. e5
{[%clk 0:02:35.7]} 10... Nd5 {[%clk 0:02:44.6]} 11. Bc4 {[%clk 0:02:28.1]} 11...
Nb6 {[%clk 0:02:42.5]} 12. Bg5 {[%clk 0:02:23.8]} 12... Nxc4 {[%clk 0:02:32]}
13. Bxd8 {[%clk 0:02:22.2]} 13... Kxd8 {[%clk 0:02:32.9]} 14. Qe2 {[%clk
0:02:20.7]} 14... Nb6 {[%clk 0:02:31.1]} 15. O-O {[%clk 0:02:16.2]} 15... Bg7
{[%clk 0:02:31.1]} 16. Ng5 {[%clk 0:02:11.1]} 16... Ke8 {[%clk 0:02:30.7]} 17.
Qf3 {[%clk 0:02:08.5]} 17... Rf8 {[%clk 0:02:23.6]} 18. Nxh7 {[%clk 0:02:08.7]}
18... Rh8 {[%clk 0:02:23.7]} 19. Nf6+ {[%clk 0:02:08.1]} 19... Kf8 {[%clk
0:02:22.1]} 20. a4 {[%clk 0:02:01]} 20... Rb8 {[%clk 0:02:19.4]} 21. b3 {[%clk
0:01:49.8]} 21... Bb7 {[%clk 0:02:19.8]} 22. Qe3 {[%clk 0:01:40]} 22... Bxf6
{[%clk 0:02:11.5]} 23. exf6 {[%clk 0:01:36.5]} 23... Nd5 {[%clk 0:02:12.2]} 24.
Qd2 {[%clk 0:01:32.4]} 24... Rh4 {[%clk 0:02:09.5]} 25. g3 {[%clk 0:01:27.8]}
25... Rh5 {[%clk 0:02:09.4]} 26. f3 {[%clk 0:01:27.1]} 26... Nxf6 {[%clk
0:02:07.6]} 27. Nc7 {[%clk 0:01:23.9]} 27... Kg7 {[%clk 0:02:02.7]} 28. a5
{[%clk 0:01:15]} 28... Rbh8 {[%clk 0:02:02.2]} 29. Rf2 {[%clk 0:01:14]} 29...
Nd5 {[%clk 0:01:58.7]} 30. Nxa6 {[%clk 0:01:09.8]} 30... Bxa6 {[%clk 0:01:58.9]}
31. Rc1 {[%clk 0:01:07.8]} 31... Nc3 {[%clk 0:01:58.8]} 32. Rxc3 {[%clk
0:01:08.2]} 32... bxc3 {[%clk 0:01:58.8]} 33. Qxc3+ {[%clk 0:01:09.1]} 33... f6
{[%clk 0:01:56.7]} 34. b4 {[%clk 0:01:00.6]} 34... Rc8 {[%clk 0:01:53.3]} 35. g4
{[%clk 0:00:54]} 35... Rd5 {[%clk 0:01:48.7]} 36. h4 {[%clk 0:00:50.9]} 36...
Rxd6 {[%clk 0:01:42.4]} 37. bxc5 {[%clk 0:00:48.9]} 37... Rdc6 {[%clk 0:01:42]}
38. g5 {[%clk 0:00:48.6]} 38... e5 {[%clk 0:01:41]} 39. gxf6+ {[%clk 0:00:48.6]}
39... Kxf6 {[%clk 0:01:40.9]} 40. f4 {[%clk 0:00:49.1]} 40... Rxc5 {[%clk
0:01:37.2]} 41. fxe5+ {[%clk 0:00:49.4]} 41... Ke6 {[%clk 0:01:37.5]} 42. Qh3+
{[%clk 0:00:48]} 42... Ke7 {[%clk 0:01:34]} 43. Qa3 {[%clk 0:00:46.3]} 43... Ke6
{[%clk 0:01:31.4]} 44. Qe3 {[%clk 0:00:42.8]} 44... Rc1+ {[%clk 0:01:29.8]} 45.
Kh2 {[%clk 0:00:43.1]} 45... Bb7 {[%clk 0:01:22.4]} 46. Rf6+ {[%clk 0:00:41.9]}
46... Ke7 {[%clk 0:01:22.1]} 47. Qa3+ {[%clk 0:00:41.9]} 47... R8c5 {[%clk
0:01:19.3]} 48. a6 {[%clk 0:00:35.6]} 48... Rc2+ {[%clk 0:01:17.5]} 49. Kg1
{[%clk 0:00:34.2]} 49... Ba8 {[%clk 0:01:14.4]} 50. a7 {[%clk 0:00:25.4]} 50...
Ke8 {[%clk 0:01:13.1]} 51. Rf2 {[%clk 0:00:21.2]} 51... Rc1+ {[%clk 0:00:57.5]}
52. Rf1 {[%clk 0:00:20.6]} 52... R1c3 {[%clk 0:00:56.2]} 53. Qb4 {[%clk
0:00:17.9]} 53... Rg3+ {[%clk 0:00:53.4]} 54. Kh2 {[%clk 0:00:18.5]} 54... Rg2+
{[%clk 0:00:53.3]} 55. Kh3 {[%clk 0:00:18.9]} 55... Rgc2 {[%clk 0:00:45.2]} 56.
Qb8+ {[%clk 0:00:18.9]} 56... Rc8 {[%clk 0:00:45.8]} 57. Qb4 {[%clk 0:00:19.2]}
57... R8c3+ {[%clk 0:00:43.1]} 58. Kg4 {[%clk 0:00:19.2]} 58... Rc4+ {[%clk
0:00:43.6]} 59. Rf4 {[%clk 0:00:18.9]} 59... Rxb4 {[%clk 0:00:43.7]} 60. Rxb4
{[%clk 0:00:19.8]} 60... Rc8 {[%clk 0:00:41.9]} 61. Kg5 {[%clk 0:00:19.8]} 61...
Kd8 {[%clk 0:00:28.7]} 62. Kxg6 {[%clk 0:00:18.7]} 62... Rc6+ {[%clk 0:00:28.5]}
63. Kg7 {[%clk 0:00:17.9]} 63... Rc8 {[%clk 0:00:19]} 64. h5 {[%clk 0:00:07.9]}
64... Kc7 {[%clk 0:00:17.5]} 65. h6 {[%clk 0:00:05.7]} 65... Bd5 {[%clk
0:00:16.2]} 66. Rb8 {[%clk 0:00:04.4]} 1-0

[Event "Late-Titled-Tuesday-Blitz-October-10-2023"]
[Site "Chess.com"]
[Date "2023.10.10"]
[Round "6"]
[White "ozates"]
[Black "Necromon"]
[Result "1-0"]
[WhiteElo "2767"]
[BlackElo "2464"]
[TimeControl "180+1"]
[EndTime "15:03:58 PDT"]
[Termination "ozates won by resignation"]

1. c4 {[%clk 0:03:00.9]} 1... e5 {[%clk 0:02:59.3]} 2. g3 {[%clk 0:02:59.9]}
2... Nf6 {[%clk 0:02:59.3]} 3. Bg2 {[%clk 0:03:00.5]} 3... d5 {[%clk 0:02:59.9]}
4. cxd5 {[%clk 0:03:01.2]} 4... Nxd5 {[%clk 0:03:00.6]} 5. Nc3 {[%clk
0:03:01.7]} 5... Nb6 {[%clk 0:03:01]} 6. Nf3 {[%clk 0:03:00.1]} 6... Nc6 {[%clk
0:03:01.3]} 7. O-O {[%clk 0:03:00.5]} 7... Be7 {[%clk 0:03:01.8]} 8. d3 {[%clk
0:02:58.3]} 8... O-O {[%clk 0:03:01.8]} 9. a3 {[%clk 0:02:56]} 9... Be6 {[%clk
0:03:02.1]} 10. Be3 {[%clk 0:02:52.3]} 10... Nd5 {[%clk 0:02:47.2]} 11. Nxd5
{[%clk 0:02:51.6]} 11... Bxd5 {[%clk 0:02:47.4]} 12. Rc1 {[%clk 0:02:50.5]}
12... Bd6 {[%clk 0:02:35.9]} 13. Qa4 {[%clk 0:02:42.2]} 13... Ne7 {[%clk
0:02:17.2]} 14. Bc5 {[%clk 0:02:35]} 14... Bc6 {[%clk 0:02:15.6]} 15. Qb3 {[%clk
0:02:27.5]} 15... Nf5 {[%clk 0:02:03.7]} 16. Rfd1 {[%clk 0:02:18.3]} 16... Qf6
{[%clk 0:01:49.8]} 17. Qc3 {[%clk 0:02:08.1]} 17... Rfe8 {[%clk 0:01:43.3]} 18.
b4 {[%clk 0:02:07.1]} 18... Bxc5 {[%clk 0:01:29.3]} 19. Qxc5 {[%clk 0:02:08]}
19... Bxf3 {[%clk 0:01:29.4]} 20. Bxf3 {[%clk 0:02:06.4]} 20... Nd4 {[%clk
0:01:29.9]} 21. Kg2 {[%clk 0:02:01.4]} 21... c6 {[%clk 0:01:25.7]} 22. Qc4
{[%clk 0:01:49.8]} 22... Nxf3 {[%clk 0:01:24.2]} 23. exf3 {[%clk 0:01:49.7]}
23... Rad8 {[%clk 0:01:19]} 24. b5 {[%clk 0:01:49.9]} 24... Re6 {[%clk
0:01:14.4]} 25. Qa4 {[%clk 0:01:46.3]} 25... cxb5 {[%clk 0:00:57.6]} 26. Qxa7
{[%clk 0:01:46]} 26... Qf5 {[%clk 0:00:51.8]} 27. Qxb7 {[%clk 0:01:42]} 27...
Rh6 {[%clk 0:00:51.3]} 28. h4 {[%clk 0:01:33.9]} 28... g5 {[%clk 0:00:43.7]} 29.
Qe7 {[%clk 0:01:33.6]} 29... Ra8 {[%clk 0:00:32.2]} 30. Qxg5+ {[%clk 0:01:31.3]}
30... Qxg5 {[%clk 0:00:32.3]} 31. hxg5 {[%clk 0:01:32.2]} 31... Re6 {[%clk
0:00:30.4]} 32. Rc3 {[%clk 0:01:26.3]} 32... Kg7 {[%clk 0:00:27.9]} 33. Rb1
{[%clk 0:01:26.5]} 33... Kg6 {[%clk 0:00:27.5]} 34. Rxb5 {[%clk 0:01:18.1]}
34... Kxg5 {[%clk 0:00:25.8]} 35. f4+ {[%clk 0:01:13.2]} 35... Kf6 {[%clk
0:00:24.5]} 36. fxe5+ {[%clk 0:01:12.4]} 36... Rxe5 {[%clk 0:00:24.3]} 37. Rc6+
{[%clk 0:00:55.4]} 37... Re6 {[%clk 0:00:24.4]} 38. Rxe6+ {[%clk 0:00:41.2]}
38... fxe6 {[%clk 0:00:25.3]} 39. Rb3 {[%clk 0:00:40.7]} 39... Ra4 {[%clk
0:00:25]} 40. f4 {[%clk 0:00:39.4]} 40... Kf5 {[%clk 0:00:24.3]} 41. Kf3 {[%clk
0:00:40]} 41... h5 {[%clk 0:00:23.6]} 42. Rc3 {[%clk 0:00:35.7]} 42... Rd4
{[%clk 0:00:21.9]} 43. Rc5+ {[%clk 0:00:30.6]} 43... Kf6 {[%clk 0:00:20.9]} 44.
Ke3 {[%clk 0:00:29.5]} 44... Ra4 {[%clk 0:00:21.1]} 45. Rxh5 {[%clk 0:00:30]}
45... Rxa3 {[%clk 0:00:21.7]} 46. g4 {[%clk 0:00:30.7]} 46... Ra1 {[%clk
0:00:21.8]} 47. Rh6+ {[%clk 0:00:29.7]} 47... Kf7 {[%clk 0:00:21.7]} 48. g5
{[%clk 0:00:27.4]} 48... Re1+ {[%clk 0:00:18.1]} 49. Kd4 {[%clk 0:00:22.2]}
49... Rf1 {[%clk 0:00:17.9]} 50. Rf6+ {[%clk 0:00:22.8]} 50... Ke7 {[%clk
0:00:17.6]} 51. Ke3 {[%clk 0:00:20.4]} 51... Re1+ {[%clk 0:00:17]} 52. Kf2
{[%clk 0:00:18.7]} 52... Ra1 {[%clk 0:00:16.3]} 53. f5 {[%clk 0:00:16.2]} 53...
exf5 {[%clk 0:00:15.4]} 54. Rxf5 {[%clk 0:00:17.1]} 54... Ra2+ {[%clk
0:00:14.8]} 55. Ke3 {[%clk 0:00:16.9]} 55... Ra1 {[%clk 0:00:14.9]} 56. d4
{[%clk 0:00:16.4]} 56... Rg1 {[%clk 0:00:13.3]} 57. Ke4 {[%clk 0:00:13.7]} 57...
Ke6 {[%clk 0:00:12.4]} 58. Rf6+ {[%clk 0:00:13.3]} 58... Ke7 {[%clk 0:00:12.1]}
59. Kf5 {[%clk 0:00:13.2]} 59... Rd1 {[%clk 0:00:12.4]} 60. Ke5 {[%clk
0:00:11.9]} 60... Re1+ {[%clk 0:00:12.4]} 61. Kd5 {[%clk 0:00:12.1]} 61... Rg1
{[%clk 0:00:12.7]} 62. Rf5 {[%clk 0:00:12.5]} 62... Rg2 {[%clk 0:00:12.3]} 63.
Kc6 {[%clk 0:00:10.9]} 63... Ke6 {[%clk 0:00:12.8]} 64. Re5+ {[%clk 0:00:11]}
64... Kf7 {[%clk 0:00:12.7]} 65. d5 {[%clk 0:00:11.6]} 65... Rc2+ {[%clk
0:00:12.6]} 66. Kd7 {[%clk 0:00:12]} 66... Rc3 {[%clk 0:00:12.6]} 67. d6 {[%clk
0:00:12.2]} 67... Rc1 {[%clk 0:00:11.5]} 68. Kd8 {[%clk 0:00:12.4]} 68... Rc2
{[%clk 0:00:11.5]} 69. d7 {[%clk 0:00:12.3]} 69... Rc1 {[%clk 0:00:12.2]} 70.
Re2 {[%clk 0:00:10.9]} 70... Rc2 {[%clk 0:00:10.2]} 71. Rxc2 {[%clk 0:00:09.8]}
1-0

[Event "Late-Titled-Tuesday-Blitz-October-10-2023"]
[Site "Chess.com"]
[Date "2023.10.10"]
[Round "6"]
[White "dorpato"]
[Black "egnfanclub"]
[Result "1/2-1/2"]
[WhiteElo "2077"]
[BlackElo "2347"]
[TimeControl "180+1"]
[EndTime "15:03:59 PDT"]
[Termination "Game drawn - insufficient material"]

1. e4 {[%clk 0:02:57.5]} 1... e5 {[%clk 0:02:59.3]} 2. Nf3 {[%clk 0:02:55.2]}
2... Nc6 {[%clk 0:02:59.5]} 3. d4 {[%clk 0:02:54.1]} 3... exd4 {[%clk
0:03:00.4]} 4. c3 {[%clk 0:02:53.4]} 4... dxc3 {[%clk 0:03:00.2]} 5. Nxc3 {[%clk
0:02:52.5]} 5... d6 {[%clk 0:02:59.5]} 6. Bc4 {[%clk 0:02:51.9]} 6... Nf6 {[%clk
0:02:59.6]} 7. O-O {[%clk 0:02:46.3]} 7... Be7 {[%clk 0:02:58.7]} 8. Qb3 {[%clk
0:02:42]} 8... O-O {[%clk 0:02:58.5]} 9. Ng5 {[%clk 0:02:36.1]} 9... Ne5 {[%clk
0:02:58.2]} 10. f4 {[%clk 0:02:28.8]} 10... Nxc4 {[%clk 0:02:57.7]} 11. Qxc4
{[%clk 0:02:29.7]} 11... h6 {[%clk 0:02:46.6]} 12. Nf3 {[%clk 0:01:54.3]} 12...
Be6 {[%clk 0:02:38.8]} 13. Qd3 {[%clk 0:01:50.5]} 13... c6 {[%clk 0:02:27.6]}
14. Be3 {[%clk 0:01:40.7]} 14... Ng4 {[%clk 0:01:52.6]} 15. f5 {[%clk 0:01:30]}
15... Nxe3 {[%clk 0:01:49]} 16. Qxe3 {[%clk 0:01:27.4]} 16... Bc4 {[%clk
0:01:42.6]} 17. Rfd1 {[%clk 0:01:23.9]} 17... Qb6 {[%clk 0:01:42.4]} 18. Qxb6
{[%clk 0:01:11.3]} 18... axb6 {[%clk 0:01:43.3]} 19. b3 {[%clk 0:01:11.3]} 19...
Ba6 {[%clk 0:01:31.1]} 20. Rd2 {[%clk 0:00:54]} 20... Bf6 {[%clk 0:01:28.1]} 21.
Rc1 {[%clk 0:00:50]} 21... Bxc3 {[%clk 0:01:24.8]} 22. Rxc3 {[%clk 0:00:48.4]}
22... Rfe8 {[%clk 0:01:24.5]} 23. Re3 {[%clk 0:00:46.5]} 23... Rad8 {[%clk
0:01:18]} 24. Kf2 {[%clk 0:00:35.1]} 24... c5 {[%clk 0:01:04.9]} 25. g4 {[%clk
0:00:31.5]} 25... f6 {[%clk 0:01:04.8]} 26. h4 {[%clk 0:00:30]} 26... b5 {[%clk
0:01:05.2]} 27. g5 {[%clk 0:00:29.5]} 27... hxg5 {[%clk 0:01:04.9]} 28. hxg5
{[%clk 0:00:29.4]} 28... fxg5 {[%clk 0:01:02.9]} 29. Nxg5 {[%clk 0:00:29.4]}
29... b6 {[%clk 0:00:51.2]} 30. Ne6 {[%clk 0:00:26.7]} 30... Rd7 {[%clk
0:00:48.9]} 31. Rg3 {[%clk 0:00:25.7]} 31... Bb7 {[%clk 0:00:47.5]} 32. Ke3
{[%clk 0:00:20.5]} 32... Rf7 {[%clk 0:00:47.1]} 33. Rxd6 {[%clk 0:00:18.3]}
33... Bc8 {[%clk 0:00:35.7]} 34. Rxb6 {[%clk 0:00:17.8]} 34... Bxe6 {[%clk
0:00:35.5]} 35. Rxe6 {[%clk 0:00:17.1]} 35... Rxe6 {[%clk 0:00:34.8]} 36. fxe6
{[%clk 0:00:17.9]} 36... Ra7 {[%clk 0:00:34.5]} 37. Rg5 {[%clk 0:00:16.4]} 37...
c4 {[%clk 0:00:30.7]} 38. bxc4 {[%clk 0:00:15.7]} 38... bxc4 {[%clk 0:00:31.6]}
39. Rc5 {[%clk 0:00:16]} 39... Kf8 {[%clk 0:00:28.1]} 40. Rxc4 {[%clk
0:00:15.8]} 40... Rxa2 {[%clk 0:00:28.2]} 41. Kf4 {[%clk 0:00:15]} 41... Ke7
{[%clk 0:00:28]} 42. Rc6 {[%clk 0:00:14]} 42... Ra7 {[%clk 0:00:23.8]} 43. Kf5
{[%clk 0:00:13.9]} 43... Rb7 {[%clk 0:00:21.9]} 44. Kg6 {[%clk 0:00:13]} 44...
Rb4 {[%clk 0:00:18.3]} 45. Kf5 {[%clk 0:00:12]} 45... Rb5+ {[%clk 0:00:18.5]}
46. e5 {[%clk 0:00:12.1]} 46... Rb7 {[%clk 0:00:17.5]} 47. Kg6 {[%clk
0:00:12.2]} 47... Rb5 {[%clk 0:00:17.7]} 48. Kf5 {[%clk 0:00:12.1]} 48... Rb7
{[%clk 0:00:17.9]} 49. Ra6 {[%clk 0:00:12.4]} 49... Rc7 {[%clk 0:00:17.7]} 50.
Ra8 {[%clk 0:00:11.5]} 50... Rb7 {[%clk 0:00:17.9]} 51. Rg8 {[%clk 0:00:11.2]}
51... Rb1 {[%clk 0:00:15.9]} 52. Rxg7+ {[%clk 0:00:11.7]} 52... Ke8 {[%clk
0:00:16.4]} 53. Rg8+ {[%clk 0:00:10.7]} 53... Ke7 {[%clk 0:00:16.2]} 54. Rg7+
{[%clk 0:00:11.4]} 54... Ke8 {[%clk 0:00:15.9]} 55. e7 {[%clk 0:00:10.9]} 55...
Rb6 {[%clk 0:00:11.2]} 56. Rh7 {[%clk 0:00:09.7]} 56... Ra6 {[%clk 0:00:10.7]}
57. Ke4 {[%clk 0:00:07.2]} 57... Ra5 {[%clk 0:00:08.8]} 58. Kf5 {[%clk
0:00:05.9]} 58... Ra6 {[%clk 0:00:09.1]} 59. e6 {[%clk 0:00:04.7]} 59... Ra1
{[%clk 0:00:08.3]} 60. Kf6 {[%clk 0:00:04.8]} 60... Rf1+ {[%clk 0:00:08.8]} 61.
Ke5 {[%clk 0:00:04.2]} 61... Re1+ {[%clk 0:00:09.4]} 62. Kd6 {[%clk 0:00:04.8]}
62... Rd1+ {[%clk 0:00:09.9]} 63. Kc6 {[%clk 0:00:05.3]} 63... Rc1+ {[%clk
0:00:10.5]} 64. Kd5 {[%clk 0:00:05.9]} 64... Rd1+ {[%clk 0:00:10.8]} 65. Kc5
{[%clk 0:00:06.2]} 65... Rc1+ {[%clk 0:00:11.1]} 66. Kd4 {[%clk 0:00:06.9]}
66... Rd1+ {[%clk 0:00:11.6]} 67. Ke4 {[%clk 0:00:07.3]} 67... Re1+ {[%clk
0:00:12]} 68. Kf5 {[%clk 0:00:08.2]} 68... Rf1+ {[%clk 0:00:12.2]} 69. Kg5
{[%clk 0:00:07.5]} 69... Rg1+ {[%clk 0:00:12.4]} 70. Kf4 {[%clk 0:00:08.2]}
70... Rf1+ {[%clk 0:00:12.8]} 71. Kg4 {[%clk 0:00:08.8]} 71... Rg1+ {[%clk
0:00:13]} 72. Kf3 {[%clk 0:00:09.4]} 72... Re1 {[%clk 0:00:12.8]} 73. Kf4 {[%clk
0:00:06.9]} 73... Rxe6 {[%clk 0:00:12.6]} 74. Kf5 {[%clk 0:00:07.6]} 74... Rxe7
{[%clk 0:00:13.1]} 75. Rxe7+ {[%clk 0:00:08.3]} 75... Kxe7 {[%clk 0:00:14]}
1/2-1/2